Cogmind - Beta 13 @@@ ROGUE MODE // 2024.05.20 @ 01:28:36 Player: Gregathol Result: Destroyed by S-10 Pest with Light Assault Rifle Performance ------------- Evolutions (1) 500 Regions Visited (2) 400 Robots Destroyed (13) 65 Value Destroyed (321) 321 Prototype IDs (1) 20 Alien Tech Used (0) 0 Bonus (0) 0 TOTAL SCORE: 1306 Bonus ------- None Cogmind --------- Core Integrity 0/400 Matter 233/300 Energy 99/100 System Corruption 0% Temperature Cool (0) Movement Core (100) Ox1 Location -9/Materials Parts ------- > --- POWER (1) -------- (None) > --- PROPULSION (4) --- (None) > --- UTILITY (2) ------ Small Storage Unit > --- WEAPON (2) ------- (None) > --- INVENTORY (8) ---- Airjet Airjet Airjet Airjet Spread Laser Spread Laser Peak State ------------ > --- POWER ------------ Ion Engine > --- PROPULSION ------- VTOL Module VTOL Module VTOL Module VTOL Module > --- UTILITY ---------- Small Storage Unit > --- WEAPON ----------- Spread Laser Precision Beam Rifle > --- INVENTORY -------- Ion Engine Airjet Airjet Airjet Airjet Spread Laser Heavy Assault Rifle Grenade Launcher [Rating: 17] Favorites ----------- Power Ion Engine Engine Ion Engine Propulsion Aluminum Leg Leg Aluminum Leg Flight Unit VTOL Module Utility Small Storage Unit Storage Small Storage Unit Protection Light Armor Plating Weapon Medium Laser Energy Gun Medium Laser Ballistic Gun Assault Rifle Launcher Grenade Launcher Build | -11 -10 -9 ------- Run | Yrd Mat Mat Slots Evolved 2 | . . 2 Power . | . . . Propulsion 2 | . . 2 Utility . | . . . Weapon . | . . . Parts Attached 23 | 8 7 8 Power 2 | 1 . 1 Engine 2 | 1 . 1 Core . | . . . Reactor . | . . . Propulsion 6 | 2 2 2 Treads . | . . . Leg 2 | 2 . . Wheel . | . . . Hover . | . . . Flight 4 | . 2 2 Utility 2 | 1 1 . Device . | . . . Storage 1 | 1 . . Processor . | . . . Hackware . | . . . Protection 1 | . 1 . Artifact . | . . . Weapon 13 | 4 4 5 Energy Gun 6 | 4 1 1 Energy Cannon . | . . . Ballistic Gun 6 | . 3 3 Ballistic Cannon . | . . . Launcher 1 | . . 1 Special Weapon . | . . . Impact Weapon . | . . . Slashing Weapon . | . . . Piercing Weapon . | . . . Special Melee Weapon . | . . . Unidentified Prototypes 1 | . . 1 Parts Lost 11 | . . 11 Power 2 | . . 2 Propulsion 4 | . . 4 Utility . | . . . Weapon 5 | . . 5 Highest Loss Streak 11 | . . 11 To Critical Strikes . | . . . Average Slot Usage (%) 89 | . 97 63 Engine 12 | . 14 6 Leg 20 | . 25 . Flight 8 | . 1 30 Storage 13 | . 14 11 Protection 9 | . 12 . Energy Gun 17 | . 19 12 Ballistic Gun 7 | . 8 4 Naked Turns . | . . . Heaviest Build 19 | 13 19 16 Greatest Support 20 | 20 20 16 Greatest Overweight (x) 4 | 3 4 2 Average Overweight (x) . | . . . Largest Inventory Capacity 8 | 8 8 8 Average Capacity 7 | 7 8 8 Most Carried 8 | 4 8 8 Average Carried 5 | 1 5 6 Final Capacity 8 | 8 8 8 Final Carried 8 | 2 8 6 Class Distribution -------------------- 79% | Mutant 20% | Sprinter Dominant Class ---------------- Mutant | -10/Materials Sprinter | -9/Materials Resources | -11 -10 -9 ----------- Run | Yrd Mat Mat Matter Collected 455 | 204 165 86 Remotely . | . . . Salvage Created 367 | . 233 134 Parts 23 | . 17 6 Haulers Intercepted . | . . . Recyclers Shooed 1 | . . 1 Parts Field Recycled . | . . . Retrieved Matter . | . . . Parts Self-Destructed . | . . . Prevented . | . . . Kills | -11 -10 -9 ------- Run | Yrd Mat Mat Combat Hostiles Destroyed 11 | . 7 4 Guns 11 | . 7 4 Classes Destroyed 4 | . 3 1 Worker 1 | . . 1 Watcher 1 | . 1 . Swarmer 4 | . 3 1 Grunt 7 | . 4 3 Best Kill Streak 5 | . 5 3 Combat Bots Only 5 | . 5 3 Max Kills in Single Turn 1 | . 1 1 Gunslinging . | . . . Exploded . | . . . Melee . | . . . Uniques/NPCs Destroyed . | . . . Combat | -11 -10 -9 -------- Run | Yrd Mat Mat Hostile Shots Fired 167 | . 56 111 Missed 36 | . 9 27 Damage Taken 1566 | . 506 1060 Core 492 | . 85 407 Absorbed by Shields . | . . . Core Remaining (%) 83 | 100 66 . Volleys Fired 46 | . 32 14 Largest 2 | . 2 2 Hottest 126 | . 90 126 Shots Fired 80 | . 59 21 Gun 80 | . 59 21 Cannon . | . . . Launcher . | . . . Special . | . . . Kinetic 29 | . 22 7 Thermal 51 | . 37 14 Explosive . | . . . Electromagnetic . | . . . Robot Hit Streak 9 | . 6 9 Robot Miss Streak 3 | . 3 3 Penetration Max . | . . . Secondary Targets 5 | . 3 2 Max Gunslinging Chain 1 | . 1 1 Shots Hit Robots 56 | . 38 18 Core Hits 29 | . 13 16 Critical Kills . | . . . Critical Parts Destroyed . | . . . Critical Strikes . | . . . Melee Attacks . | . . . Impact . | . . . Slashing . | . . . Piercing . | . . . Sneak Attacks . | . . . Combat Hostiles . | . . . Follow-up Attacks . | . . . Damage Inflicted 755 | . 457 298 Guns 752 | . 454 298 Cannons . | . . . Explosions . | . . . Melee . | . . . Ramming 3 | . 3 . Kinetic 262 | . 172 90 Thermal 490 | . 282 208 Explosive . | . . . Electromagnetic . | . . . Impact . | . . . Slashing . | . . . Piercing . | . . . Highest Corruption . | . . . Average Corruption . | . . . Corruption Purged . | . . . Corruption Blocked . | . . . Overload Shots . | . . . Overflow Damage . | . . . Projectiles . | . . . Explosions . | . . . Melee . | . . . Knockbacks . | . . . Impact . | . . . Kinetic . | . . . Secondary . | . . . Self-Inflicted Damage . | . . . Shots . | . . . Rammed . | . . . Targets Rammed 1 | . 1 . Kicked 1 | . 1 . Crushed . | . . . Highest Temperature 463 | . 297 463 Average Temperature 158 | . 133 229 Received Heat Transfer 405 | . 219 186 Effects 4 | . 3 1 Energy Bleed 2 | . 2 . Interference 1 | . 1 . Matter Decay 1 | . . 1 Siege Activations . | . . . Robots Corrupted . | . . . Combat Hostiles . | . . . Parts Fried . | . . . Impact Corruptions . | . . . Robots Melted . | . . . Combat Hostiles . | . . . Parts Melted . | . . . Heat Transferred 1150 | . 803 347 Parts Sabotaged . | . . . Parts Stolen . | . . . Parts Stripped . | . . . Power Chain Reactions . | . . . Alert | -11 -10 -9 ------- Run | Yrd Mat Mat Peak Influence 269 | . 201 269 Initial 84 | . . 84 Average 99 | . 90 195 Maximum Alert Level 1 | . 1 1 Low Security (%) 71 | 100 74 42 Level 1 28 | . 25 57 Level 2 . | . . . Level 3 . | . . . Level 4 . | . . . Level 5 . | . . . High Security . | . . . Max Security . | . . . Squads Dispatched 1 | . . 1 Investigation . | . . . Extermination . | . . . Reinforcement 1 | . . 1 Assault . | . . . Garrison . | . . . Intercept . | . . . Searches Triggered . | . . . Construction Impeded . | . . . Haulers Reinforced . | . . . Active Scanning Responses . | . . . Cargo Convoy Interrupts . | . . . Stealth | -11 -10 -9 --------- Run | Yrd Mat Mat Distress Signals . | . . . Communications Jammed . | . . . Distress Signals . | . . . Times Spotted 32 | . 12 20 Peak Tracking Total 12 | . 6 12 Tactical Retreats 2 | . . 2 Traps | -11 -10 -9 ------- Run | Yrd Mat Mat Traps Triggered . | . . . Indirectly . | . . . Trap Hack Attempts . | . . . Triggered . | . . . Disarmed . | . . . Reprogrammed . | . . . Reused . | . . . Traps Extracted . | . . . Installed . | . . . Triggered . | . . . Machines | -11 -10 -9 ---------- Run | Yrd Mat Mat Machines Disabled . | . . . Max in Single Turn . | . . . Machines Repaired . | . . . Machines Dismantled . | . . . Machines Sabotaged . | . . . Overloaded Fab Kills . | . . . Hacking | -11 -10 -9 --------- Run | Yrd Mat Mat Machines Accessed 1 | . 1 . Terminals 1 | . 1 . Fabricators . | . . . Repair Stations . | . . . Recycling Units . | . . . Scanalyzers . | . . . Garrison Access . | . . . Total Hacks 2 | . 2 . Successful 1 | . 1 . Failed 1 | . 1 . Catastrophic . | . . . Database Lockouts . | . . . Manual . | . . . Terminals 2 | . 2 . Fabricators . | . . . Repair Stations . | . . . Recycling Units . | . . . Scanalyzers . | . . . Garrison Access . | . . . Terminal Hacks 1 | . 1 . Locate Traps 1 | . 1 . Fabricator Hacks . | . . . Repair Station Hacks . | . . . Recycling Unit Hacks . | . . . Scanalyzer . | . . . Garrison Access Hacks . | . . . Unauthorized Hacks . | . . . Terminals . | . . . Fabricators . | . . . Repair Stations . | . . . Recycling Units . | . . . Scanalyzers . | . . . Garrison Access . | . . . Data Cores Recovered . | . . . Used . | . . . Hacking Detections . | . . . Full Trace Events . | . . . Feedback Events . | . . . Feedback Blocked . | . . . Robot Schematics Acquired . | . . . Robots Built . | . . . Authchips . | . . . Time . | . . . Total Robot Build Rating . | . . . Part Schematics Acquired . | . . . Parts Built . | . . . Authchips . | . . . Time . | . . . Total Part Build Rating . | . . . Parts Repaired . | . . . Time . | . . . Parts Recycled . | . . . Recycled Matter . | . . . Retrieved Matter . | . . . Retrieved Components . | . . . Parts Scanalyzed . | . . . Part Schematics Acquired . | . . . Parts Damaged . | . . . Bothacking | -11 -10 -9 ------------ Run | Yrd Mat Mat Used RIF Installer . | . . . Robots Hacked . | . . . Non-combat . | . . . Combat . | . . . Robot Hacks Applied . | . . . Relay Couplers Released . | . . . Fabnet Peak Effective % . | . . . Robots Rewired . | . . . Allies Hacked . | . . . Hacks Repelled . | . . . Allies | -11 -10 -9 -------- Run | Yrd Mat Mat Total Allies . | . . . Largest Group . | . . . Highest-Rated Group . | . . . Highest-Rated Ally . | . . . Total Orders . | . . . Ally Attacks . | . . . Total Damage . | . . . Kills . | . . . Allies Corrupted . | . . . Allies Melted . | . . . Intel | -11 -10 -9 ------- Run | Yrd Mat Mat Robot Analysis Total . | . . . Derelict Logs Recovered . | . . . Drone Launches . | . . . Drone Recoveries . | . . . Exploration | -11 -10 -9 ------------- Run | Yrd Mat Mat Turns Passed 565 | 70 386 109 Spaces Moved 386 | 41 223 122 Core 27 | 9 . 18 Treads . | . . . Legs 239 | 32 207 . Wheels . | . . . Hover . | . . . Flight 120 | . 16 104 Fastest Speed 26 | 50 112 26 Average Speed 96 | 137 121 37 Slowest Speed 355 | 200 355 150 Overloaded Moves . | . . . Propulsion Burnouts . | . . . Robots Hopped . | . . . Cave-ins Triggered . | . . . Exploration Rate (%) 20 | 4 38 18 Regions Visited 2 Branch Regions . Pre-discovered Areas . | . . . Known Exits Taken . | . . . Unknown Exits Taken 2 | 1 1 . Scrap Searched . | . . . Spaces Dug . | . . . Terrain Destroyed . | . . . Melee . | . . . Projectile . | . . . AOE . | . . . Terrain Rammed . | . . . Walls Destroyed . | . . . Machines Disabled . | . . . Actions | -11 -10 -9 --------- Run | Yrd Mat Mat Total 499 | 52 283 164 Wait 11 | . 1 10 Move 384 | 40 222 122 Hop . | . . . Pick Up 16 | 2 9 5 Fast Attach 14 | 6 4 4 Attach 7 | 2 1 4 Detach 4 | 2 2 . Swap 3 | . 2 1 Drop 13 | . 9 4 Fire 46 | . 32 14 Melee . | . . . Ram . | . . . Kick 1 | . 1 . Crush . | . . . Escape Stasis . | . . . Rewire . | . . . Trap . | . . . Miscellaneous . | . . . Route ------- -11/Scrapyard -10/Materials -9/Materials (discovered 1 exit: [*Sto]) History --------- Turn | Location | Event 30 | -11/Scrapyard | Discovered new exit (range 15) 71 | -11/Scrapyard | Entered Materials 312 | -10/Materials | Build established: Mutant 390 | -10/Materials | Discovered new exit (range 16) 457 | -10/Materials | Entered another Materials area 457 | -9/Materials | Evolved 2 slots: Propulsion x2 477 | -9/Materials | Discovered new exit (range 15) 538 | -9/Materials | Core integrity fell below 50% 548 | -9/Materials | Core integrity fell below 20% 566 | -9/Materials | Destroyed by S-10 Pest with Light Assault Rifle Last Messages --------------- 00528_ Acquired 19 matter. 00528_ VTOL Module destroyed. 00531_ K-01 Serf collects debris. 00532_ VTOL Module destroyed. 00534_ K-01 Serf collects debris. 00534_ G-34 Mercenary destroyed. 00535_ Acquired 38 matter. 00536_ S-10 Pest destroyed. 00537_ Ion Engine destroyed. 00538_ K-01 Serf collects debris. 00539_ Hvy. Assault Rifle destroyed. 00541_ K-01 Serf collects debris. 00541_ Prc. Beam Rifle destroyed. 00543_ K-01 Serf destroyed. 00544_ Hvy. Assault Rifle severed. 00546_ Acquired Grenade Launcher. 00547_ Grenade Launcher destroyed. 00550_ Acquired Hvy. Assault Rifle. 00552_ Hvy. Assault Rifle destroyed. 00557_ S-10 Pest destroyed. Map ----- +----------------------------------------------------+ | ?????????????# + ????????????? | | ?????????????# "T" ######+##???????????????????? | | ?????????????# """ #???????????????????????????? | | ?????????????# #???????????????????????????? | | #################+####???????????????????????????? | | #????????????????????????????? | | #????????????????????????????? | | #????????????????????????????? | | ##+######+####### #????????????????????????????? | | ????????????????# ########## ???????????????? | | ????????????????# ???????????????? | | ???????????????## < ???????????????? | | ???????????????#" ???????????????? | | ???????????????#T ##### ???????????????? | | ???????????????#" #???????????????????????? | | ???????????????## ###?????????????????????? | | ????????????????# !! ""#?????????????????????? | | ????????????????# !! T"#?????????????????????? | | ?????############ ! ""#?????????????????????? | | ?????# =!% ####????????????????????? | | ?????# [=%= +?????????????????? | | ?????#!!*= *% ############?????????????????? | | ?????#!! ####+#### ##########????????????????????? | | ?????#%%=#? ?# l ##########???????????? | | ?????#[[[## # s r ????????? | | ?????###### !!!#"" @ ????????? | | ??????????# !!!#"T ????????? | | ??????????# !!!#"" ###+#######??????????? | | ??????????# # ##????????????????????? | | ??????????######## #?????????????????????? | | ?????????????????# """ #?????????????????????? | | ?????????????????# """ !#?????????????????????? | | ????????????????# """ ?????????????????????? | | ??????????????? ##????????????????????? | | ??????????????### * #?????????????????????? | | ????????????????#####?###+##?????????????????????? | | ?????????????????????????????????????????????????? | | ?????????????????????????????????????????????????? | | ?????????????????????????????????????????????????? | | ?????????????????????????????????????????????????? | | ?????????????????????????????????????????????????? | | ?????????????????????????????????????????????????? | | ?????????????????????????????????????????????????? | | ?????????????????????????????????????????????????? | | ?????????????????????????????????????????????????? | | ?????????????????????????????????????????????????? | | | | | | | | | +----------------------------------------------------+ Best States ------------- Heat Dissipation 28 Energy Generation 10 Energy Capacity 250 Matter Stores 298 Matter Capacity 300 Sight Range 16 Terrain Scan Density 10 Armor Coverage 150 Evasion (%) 64 Item Schematics ----------------- None Robot Schematics ------------------ None Fabricated ------------ Nothing Alien Tech Used ----------------- None Achievements -------------- None Challenges ------------ None Game ------ Seed ReflectiveTransmissionStorm Manual? 0 Play Time 00:12:49 Cumulative 122.0 hours Start 2024.05.20 @ 01:15:23 End 2024.05.20 @ 01:28:36 Sessions 1 Manual Loads 0 Difficulty Rogue Special Mode None Game No. 102 Rogue 78 Adventurer 23 Explorer 1 Win Type - Total 1 Types 0/0/1/0/0/0/0/0/0 Lore% 23 Gallery% 47 Achievement% 33 Wizard Run 0 Options --------- Layout 0 ASCII 0 Keyboard 0 Movement Numpad Keybinds 0 Fullscreen 2 Font 16/Terminus Map View 88x55 Zoom Use 0% Tactical HUD 1 Map Filters NONE Filters NONE Steam 1 RUN: 74b318ce-c2f4-43d6-8f76-fbd17a1d7d71